Cogmind - Beta 13 @@@ ROGUE MODE // 2024.07.14 @ 17:04:53 Player: kaj Result: Destroyed by Y-54 Guardian with Gatling Laser Performance ------------- Evolutions (0) 0 Regions Visited (4) 800 Robots Destroyed (25) 125 Value Destroyed (797) 797 Prototype IDs (0) 0 Alien Tech Used (0) 0 Bonus (0) 0 TOTAL SCORE: 1722 Bonus ------- None Cogmind --------- Core Integrity 0/250 Matter 300/300 Energy 125/125 System Corruption 0% Temperature Cool (6) Movement Rolling (110) Location -7/Recycling Parts ------- > --- POWER (1) -------- Light Ion Engine > --- PROPULSION (2) --- Subdweller Monowheel > --- UTILITY (2) ------ Scrap Engine > --- WEAPON (2) ------- Subdweller Machine Gun Heavy Mace > --- INVENTORY (5) ---- Subdweller Monowheel High-capacity Matter Pod (200) Experimental Sensor Array Authchip [R/Combat] Subdweller Shrapnel Launcher Peak State ------------ > --- POWER ------------ Light Ion Engine > --- PROPULSION ------- Subdweller Monowheel Subdweller Monowheel > --- UTILITY ---------- Scrap Engine > --- WEAPON ----------- Battle Rifle Subdweller Machine Gun > --- INVENTORY -------- Light Ion Engine Subdweller Monowheel Subdweller Monowheel High-capacity Matter Pod Experimental Sensor Array [Rating: 26] Favorites ----------- Power Light Ion Engine Engine Light Ion Engine Power Core Light Nuclear Core Propulsion Light Treads Treads Light Treads Leg Aluminum Leg Wheel Subdweller Monowheel Hover Unit Combat Airjet Utility Small Storage Unit Device Sensor Array Storage Small Storage Unit Processor Targeting Computer Weapon Heavy Assault Rifle Ballistic Gun Heavy Assault Rifle Ballistic Cannon Bore Cannon Launcher Grenade Launcher Impact Weapon Heavy Mace Slashing Weapon Mining Claw Build | -11 -10 -10 -10 -7 ------- Run | Yrd Mat Min Sub Rec Slots Evolved . | . . . . . Power . | . . . . . Propulsion . | . . . . . Utility . | . . . . . Weapon . | . . . . . Parts Attached 42 | . 10 8 20 4 Power 5 | . . 2 3 . Engine 4 | . . 2 2 . Core 1 | . . . 1 . Reactor . | . . . . . Propulsion 12 | . 4 2 5 1 Treads 3 | . 2 . 1 . Leg . | . . . . . Wheel 7 | . 2 . 4 1 Hover 2 | . . 2 . . Flight . | . . . . . Utility 4 | . 1 2 . 1 Device 3 | . 1 1 . 1 Storage . | . . . . . Processor 1 | . . 1 . . Hackware . | . . . . . Protection . | . . . . . Artifact . | . . . . . Weapon 21 | . 5 2 12 2 Energy Gun . | . . . . . Energy Cannon . | . . . . . Ballistic Gun 14 | . 2 1 11 . Ballistic Cannon 1 | . . 1 . . Launcher 4 | . 2 . 1 1 Special Weapon . | . . . . . Impact Weapon 1 | . . . . 1 Slashing Weapon 1 | . 1 . . . Piercing Weapon . | . . . . . Special Melee Weapon . | . . . . . Unidentified Prototypes . | . . . . . Parts Lost 12 | . . 2 10 . Power 3 | . . 1 2 . Propulsion 2 | . . . 2 . Utility 1 | . . . 1 . Weapon 6 | . . 1 5 . Highest Loss Streak 4 | . . 1 4 . To Critical Strikes . | . . . . . Average Slot Usage (%) 92 | . 87 94 98 71 Engine 9 | . 14 9 8 14 Core 2 | . . . 5 . Treads 10 | . 9 14 9 . Wheel 6 | . 8 . 9 15 Hover 8 | . . 13 7 . Device 4 | . 2 6 . 12 Storage 12 | . 14 14 14 1 Processor 8 | . . 7 13 . Ballistic Gun 17 | . 18 12 23 15 Ballistic Cannon 4 | . . 8 4 . Launcher 4 | . 4 7 . 7 Naked Turns . | . . . . . Heaviest Build 24 | 13 17 20 24 16 Greatest Support 40 | 20 40 40 40 40 Greatest Overweight (x) 6 | . . 1 6 . Average Overweight (x) . | . . . . . Largest Inventory Capacity 8 | 8 8 8 8 8 Average Capacity 7 | 8 8 8 8 5 Most Carried 8 | 6 8 8 8 6 Average Carried 7 | 6 7 7 7 4 Final Capacity 8 | 8 8 8 8 5 Final Carried 8 | 6 8 8 6 5 Scrap Engine Consumption 7 | . . . . 7 Class Distribution -------------------- 71% | Mutant 25% | Derelict-Mutant Dominant Class ---------------- Mutant | -10/Materials Mutant | -10/Mines Derelict-Mutant | -10/Subcaves Mutant | -7/Recycling Resources | -11 -10 -10 -10 -7 ----------- Run | Yrd Mat Min Sub Rec Matter Collected 1405 | 200 23 481 516 185 Remotely . | . . . . . Salvage Created 687 | . 28 219 440 . Parts 45 | . 7 6 32 . Haulers Intercepted . | . . . . . Recyclers Shooed . | . . . . . Parts Field Recycled . | . . . . . Retrieved Matter . | . . . . . Parts Self-Destructed 20 | . . . 20 . Prevented . | . . . . . Kills | -11 -10 -10 -10 -7 ------- Run | Yrd Mat Min Sub Rec Combat Hostiles Destroyed 25 | . 3 8 14 . Guns 12 | . . 1 11 . Cannons 7 | . . 4 3 . AOE 6 | . 3 3 . . Classes Destroyed 8 | . 2 3 3 . Turret 2 | . . . 2 . Watcher 1 | . 1 . . . Swarmer 7 | . 3 . 4 . Grunt 6 | . . 4 2 . Sentry 1 | . . . 1 . Demolisher 1 | . . 1 . . Subdweller 7 | . . . 7 . Assembled 3 | . . 3 . . Best Kill Streak 3 | . 3 3 2 . Combat Bots Only 3 | . 3 3 2 . Max Kills in Single Turn 2 | . 2 1 1 . Gunslinging . | . . . . . Exploded 2 | . 2 1 . . Melee . | . . . . . Uniques/NPCs Destroyed . | . . . . . Combat | -11 -10 -10 -10 -7 -------- Run | Yrd Mat Min Sub Rec Hostile Shots Fired 196 | . 4 18 162 12 Missed 76 | . 1 6 64 5 Damage Taken 1764 | . 46 303 1360 55 Core 259 | . . 19 219 21 Absorbed by Shields . | . . . . . Core Remaining (%) 100 | 100 . . . . Volleys Fired 91 | . 4 25 62 . Largest 2 | . 1 2 2 . Hottest 85 | . 30 80 85 . Shots Fired 155 | . 4 35 116 . Gun 109 | . 1 19 89 . Cannon 36 | . . 12 24 . Launcher 10 | . 3 4 3 . Special . | . . . . . Kinetic 148 | . 1 31 116 . Thermal . | . . . . . Explosive 7 | . 3 4 . . Electromagnetic . | . . . . . Robot Hit Streak 14 | . 1 4 14 . Robot Miss Streak 3 | . . 3 2 . Penetration Max 1 | . . 1 1 . Secondary Targets . | . . . . . Shots Hit Robots 88 | . 1 13 73 1 Core Hits 45 | . 6 12 27 . Critical Kills 5 | . . 3 2 . Critical Parts Destroyed 4 | . . . 4 . Critical Strikes 13 | . . 3 9 1 Destroy 12 | . . 3 9 . Smash 1 | . . . . 1 Melee Attacks 1 | . . . . 1 Impact 1 | . . . . 1 Slashing . | . . . . . Piercing . | . . . . . Sneak Attacks . | . . . . . Combat Hostiles . | . . . . . Follow-up Attacks . | . . . . . Damage Inflicted 2021 | . 145 368 1488 20 Guns 1092 | . 18 94 980 . Cannons 481 | . . 121 360 . Explosions 428 | . 127 153 148 . Melee 20 | . . . . 20 Ramming . | . . . . . Kinetic 1721 | . 18 215 1488 . Thermal . | . . . . . Explosive 280 | . 127 153 . . Electromagnetic . | . . . . . Impact 20 | . . . . 20 Slashing . | . . . . . Piercing . | . . . . . Highest Corruption . | . . . . . Average Corruption . | . . . . . Corruption Purged . | . . . . . Corruption Blocked . | . . . . . Overload Shots . | . . . . . Overflow Damage . | . . . . . Projectiles . | . . . . . Explosions . | . . . . . Melee . | . . . . . Knockbacks 5 | . . . 5 . Impact . | . . . . . Kinetic 5 | . . . 5 . Secondary . | . . . . . Self-Inflicted Damage 82 | . 23 59 . . Shots 4 | . 2 2 . . Rammed 1 | . . 1 . . Targets Rammed 1 | . . 1 . . Kicked . | . . . . . Crushed . | . . . . . Highest Temperature 276 | . . 42 276 . Average Temperature 41 | . . 12 121 . Received Heat Transfer 814 | . . 84 712 18 Siege Activations . | . . . . . Robots Corrupted . | . . . . . Combat Hostiles . | . . . . . Parts Fried . | . . . . . Impact Corruptions . | . . . . . Robots Melted . | . . . . . Combat Hostiles . | . . . . . Parts Melted 1 | . . . 1 . Heat Transferred . | . . . . . Parts Sabotaged . | . . . . . Parts Stolen . | . . . . . Parts Stripped . | . . . . . Power Chain Reactions . | . . . . . Alert | -11 -10 -10 -10 -7 ------- Run | Yrd Mat Min Sub Rec Peak Influence 480 | . 144 155 . 480 Initial 452 | . . 55 . 452 Average 149 | . 125 52 . 470 Maximum Alert Level 2 | . . . . 2 Low Security (%) 78 | 100 100 100 . . Level 1 . | . . . . . Level 2 21 | . . . . 100 Level 3 . | . . . . . Level 4 . | . . . . . Level 5 . | . . . . . High Security . | . . . . . Max Security . | . . . . . Squads Dispatched . | . . . . . Investigation . | . . . . . Extermination . | . . . . . Reinforcement . | . . . . . Assault . | . . . . . Garrison . | . . . . . Intercept . | . . . . . Searches Triggered . | . . . . . Construction Impeded . | . . . . . Haulers Reinforced . | . . . . . Active Scanning Responses . | . . . . . Cargo Convoy Interrupts . | . . . . . Stealth | -11 -10 -10 -10 -7 --------- Run | Yrd Mat Min Sub Rec Distress Signals 1 | . . 1 . . Communications Jammed . | . . . . . Distress Signals . | . . . . . Times Spotted 75 | . 4 11 59 1 Peak Tracking Total 4 | . 1 3 4 1 Tactical Retreats 7 | . . 2 5 . Traps | -11 -10 -10 -10 -7 ------- Run | Yrd Mat Min Sub Rec Traps Triggered 1 | . . . 1 . Indirectly . | . . . . . Trap Hack Attempts . | . . . . . Triggered . | . . . . . Disarmed . | . . . . . Reprogrammed . | . . . . . Reused . | . . . . . Traps Extracted . | . . . . . Installed . | . . . . . Triggered . | . . . . . Machines | -11 -10 -10 -10 -7 ---------- Run | Yrd Mat Min Sub Rec Machines Disabled 7 | . 1 2 4 . Max in Single Turn 1 | . 1 1 1 . Machines Repaired . | . . . . . Machines Dismantled . | . . . . . Machines Sabotaged . | . . . . . Overloaded Fab Kills . | . . . . . Hacking | -11 -10 -10 -10 -7 --------- Run | Yrd Mat Min Sub Rec Machines Accessed 7 | . 2 . . 5 Terminals 5 | . 2 . . 3 Fabricators . | . . . . . Repair Stations . | . . . . . Recycling Units 2 | . . . . 2 Scanalyzers . | . . . . . Garrison Access . | . . . . . Total Hacks 21 | . 8 . . 13 Successful 8 | . 4 . . 4 Failed 13 | . 4 . . 9 Catastrophic 1 | . 1 . . . Database Lockouts . | . . . . . Manual 16 | . 7 . . 9 Terminals 14 | . 8 . . 6 Fabricators . | . . . . . Repair Stations . | . . . . . Recycling Units 7 | . . . . 7 Scanalyzers . | . . . . . Garrison Access . | . . . . . Terminal Hacks 3 | . 3 . . . Record 1 | . 1 . . . Terminal Index 1 | . 1 . . . Zone Layout 1 | . 1 . . . Fabricator Hacks . | . . . . . Repair Station Hacks . | . . . . . Recycling Unit Hacks . | . . . . . Scanalyzer . | . . . . . Garrison Access Hacks . | . . . . . Unauthorized Hacks 5 | . 1 . . 4 Terminals 1 | . 1 . . . Botnet 1 | . 1 . . . Fabricators . | . . . . . Repair Stations . | . . . . . Recycling Units 4 | . . . . 4 Monitor 1 | . . . . 1 Reject 1 | . . . . 1 Mask 2 | . . . . 2 Scanalyzers . | . . . . . Garrison Access . | . . . . . Data Cores Recovered . | . . . . . Used . | . . . . . Hacking Detections 7 | . 2 . . 5 Full Trace Events 2 | . . . . 2 Feedback Events . | . . . . . Feedback Blocked . | . . . . . Robot Schematics Acquired . | . . . . . Robots Built . | . . . . . Authchips . | . . . . . Time . | . . . . . Total Robot Build Rating . | . . . . . Part Schematics Acquired . | . . . . . Parts Built . | . . . . . Authchips . | . . . . . Time . | . . . . . Total Part Build Rating . | . . . . . Parts Repaired . | . . . . . Time . | . . . . . Parts Recycled . | . . . . . Recycled Matter . | . . . . . Retrieved Matter . | . . . . . Retrieved Components . | . . . . . Parts Scanalyzed . | . . . . . Part Schematics Acquired . | . . . . . Parts Damaged . | . . . . . Bothacking | -11 -10 -10 -10 -7 ------------ Run | Yrd Mat Min Sub Rec Used RIF Installer . | . . . . . Robots Hacked . | . . . . . Non-combat . | . . . . . Combat . | . . . . . Robot Hacks Applied . | . . . . . Relay Couplers Released . | . . . . . Fabnet Peak Effective % . | . . . . . Robots Rewired . | . . . . . Allies Hacked . | . . . . . Hacks Repelled . | . . . . . Allies | -11 -10 -10 -10 -7 -------- Run | Yrd Mat Min Sub Rec Total Allies . | . . . . . Largest Group . | . . . . . Highest-Rated Group . | . . . . . Highest-Rated Ally . | . . . . . Total Orders . | . . . . . Ally Attacks . | . . . . . Total Damage . | . . . . . Kills . | . . . . . Allies Corrupted . | . . . . . Allies Melted . | . . . . . Intel | -11 -10 -10 -10 -7 ------- Run | Yrd Mat Min Sub Rec Robot Analysis Total . | . . . . . Derelict Logs Recovered 2 | . . 1 1 . Drone Launches . | . . . . . Drone Recoveries . | . . . . . Exploration | -11 -10 -10 -10 -7 ------------- Run | Yrd Mat Min Sub Rec Turns Passed 2862 | 3 214 1090 1205 350 Spaces Moved 1985 | 3 146 738 819 279 Core 6 | . . . 6 . Treads 355 | . 39 316 . . Legs 56 | 3 53 . . . Wheels 952 | . 54 . 619 279 Hover 616 | . . 422 194 . Flight . | . . . . . Fastest Speed 66 | 120 90 66 66 110 Average Speed 121 | 120 119 131 116 110 Slowest Speed 350 | 120 160 160 350 110 Overloaded Moves . | . . . . . Propulsion Burnouts . | . . . . . Robots Hopped . | . . . . . Cave-ins Triggered . | . . . . . Exploration Rate (%) 47 | 2 15 100 73 47 Regions Visited 4 Branch Regions 3 Pre-discovered Areas 2 | . . 1 1 . Known Exits Taken . | . . . . . Unknown Exits Taken 4 | 1 1 1 1 . Scrap Searched 12 | . . 2 10 . Spaces Dug 13 | . 8 5 . . Terrain Destroyed 89 | . 19 38 32 . Melee . | . . . . . Projectile 12 | . . 9 3 . AOE 77 | . 19 29 29 . Terrain Rammed . | . . . . . Walls Destroyed . | . . . . . Machines Disabled . | . . . . . Actions | -11 -10 -10 -10 -7 --------- Run | Yrd Mat Min Sub Rec Total 2286 | 2 185 822 954 323 Wait 103 | . . 40 32 31 Move 1981 | 2 145 737 818 279 Hop . | . . . . . Pick Up 30 | . 14 4 10 2 Fast Attach 13 | . 1 5 5 2 Attach 16 | . 5 2 7 2 Detach 2 | . . . 1 1 Swap 13 | . 4 1 8 . Drop 35 | . 12 7 11 5 Fire 91 | . 4 25 62 . Melee 1 | . . . . 1 Ram . | . . . . . Kick . | . . . . . Crush 1 | . . 1 . . Escape Stasis . | . . . . . Rewire . | . . . . . Trap . | . . . . . Miscellaneous . | . . . . . Route ------- -11/Scrapyard -10/Materials -10/Mines (discovered 3 exits: [*Mat x2] / [*Sub]) -10/Subcaves (discovered 2 exits: [*Mat] / *Rec) -7/Recycling History --------- Turn | Location | Event 1 | -11/Scrapyard | Discovered new exit (range 3) 4 | -11/Scrapyard | Entered Materials 44 | -10/Materials | Discovered new exit (range 15) 218 | -10/Materials | Entered Mines 308 | -10/Mines | Build established: Mutant 383 | -10/Mines | Discovered new exit (range 13) 499 | -10/Mines | Assembled infested the area 504 | -10/Mines | Assisted by a Guerilla fighting off Assembled 926 | -10/Mines | Learned location of Zion (-7) 936 | -10/Mines | Discovered new exit (range 7) 1046 | -10/Mines | Found a damaged Exp. Sensor Array with a note attached 1049 | -10/Mines | Found Prototype Device 1270 | -10/Mines | Discovered new exit (range 10) 1308 | -10/Mines | Entered Subcaves 1479 | -10/Subcaves | Shifting Twisted Machinery released Mak. Axe 1652 | -10/Subcaves | Disturbed a concealed Subdweller 1939 | -10/Subcaves | Met a Zionite searching for "candidates" 1940 | -10/Subcaves | Build established: Derelict-Mutant 1980 | -10/Subcaves | Discovered new exit (range 6) 1989 | -10/Subcaves | Learned location of 1 exit from Materials 2137 | -10/Subcaves | Disturbed a concealed Subdweller 2153 | -10/Subcaves | Core integrity fell below 50% 2280 | -10/Subcaves | Shifting Twisted Machinery released Flamer 2361 | -10/Subcaves | A swath of the cavern ceiling suddenly collapsed 2398 | -10/Subcaves | Shifting Twisted Machinery released Sub. Optics 2414 | -10/Subcaves | Shifting Twisted Machinery released Sub. Shrapnel Launcher 2429 | -10/Subcaves | Core integrity fell below 20% 2492 | -10/Subcaves | Lost 4 parts (1n1u2w) 2496 | -10/Subcaves | Discovered new exit (range 16) 2513 | -10/Subcaves | Entered Recycling 2546 | -7/Recycling | Found Scrap Engine 2839 | -7/Recycling | Build established: Mutant 2863 | -7/Recycling | Destroyed by Y-54 Guardian with Gatling Laser Last Messages --------------- Monitoring response positive. 02638_ Sub. Monowheel shoots sparks and powers down. 02639_ Dropped Broken Sub. Monowheel. 02640_ Scrap Engine consumes Broken Sub. Monowheel. 02658_ Connecting with Terminal... 02724_ Scrap Engine consumes Gauss Rifle. 02733_ Scrap Engine consumes Hpw. Shotgun. 02734_ Acquired 82 matter. 02742_ Acquired Hvy. Mace. 02749_ Acquired 55 matter. 02753_ Acquired 48 matter. 02787_ Acquired Corrupted Authchip [R/Combat]. 02818_ Connecting with Recycling Unit... >>Trojan(Mask) Trojan loaded successfully. Testing... Masking routine running. 02826_ Y-54 Guardian springs to life. 02846_ Scrap Engine consumes Med. Treads. 02861_ Y-54 Guardian suffers critical hit (Smash). Map ----- +----------------------------------------------------+ | ??????# #??????# | | ??????# #??????# | | ??????# #??????# ############## " | | ??????# #??????# #????????????# " | | ??????# ! #??????# #????????????# " | | ??????# ! #??????# #???########## | | ??????# = ######## """"" #####! # | | ??????# + """"" + # " | | ??????# % # """"" # !! ! !# " | | ??????#####+#### # # " | | ??????????# + ! + | | ??????????#################"T"######## ! # | | ??????????????????????????#"""#??????# # " | | ??????????????????????????#####??????# ! ! # " | | ?????????????????????????????????????# ! ! # " | | ?????????????????????????????????????#+######## | | ?????????????????????????????????????# #??????# | | ?????????????????????###########?????# #??##??? " | | ?????????????????????# ! / #?????# ### #### " | | ?????????????????????# / #?????# " | | ?????????????????????# #???### | | ?????????????????????# ![ #???#"" | | ?????????????????????# ! #???#"Y | | ?????????????????????# ! #???#"" | | ?????????????????????# #???### | | ?????????????????????# / @ #?????# | | ??????????????????# ######Y######????# #### | | ???????????? ###### #??# | | ???????????? r #??# | | ???????????? #??? | | ?????????????# ###########+######## #??? | | ??????????????????????????????????# ##??? | | ??????????????????????????????????# #???? | | ??????????????????????????????????# #???? | | ?????????????????????????????????? #???? | | ????????????????????????????????? ##+#####+#???? | | ???????????????????????????????? #????????????? | | ???????????????????????????????? ?????????????? | | ???????????????????????????????# ###?????????????? | | ???????????????????????????????# ????????????????? | | ??????????????????????????????? ?????????????????? | | ??????????????????????????????? ?????????????????? | | ??????????????????????????????#??????????????????? | | ?????????????????????????????????????????????????? | | ?????????????????????????????????????????????????? | | ?????????????????????????????????????????????????? | | ?????????????????????????????????????????????????? | | ?????????????????????????????????????????????????? | | ?????????????????????????????????????????????????? | | ?????????????????????????????????????????????????? | +----------------------------------------------------+ Best States ------------- Heat Dissipation 39 Energy Generation 14 Energy Capacity 265 Matter Stores 300 Matter Capacity 300 Sight Range 16 Robot Scan Range 14 Terrain Scan Density 10 Evasion (%) 55 Targeting Accuracy 5 Recoil Reduction 2 Authchip Count 1 Item Schematics ----------------- None Robot Schematics ------------------ None Fabricated ------------ Nothing Alien Tech Used ----------------- None Achievements -------------- None Challenges ------------ None Game ------ Seed AlphaLightningArmor Manual? 0 Play Time 00:28:33 Cumulative 166.2 hours Start 2024.07.14 @ 16:34:58 End 2024.07.14 @ 17:04:53 Sessions 1 Manual Loads 0 Difficulty Rogue Special Mode None Game No. 256 Rogue 256 Adventurer 0 Explorer 0 Win Type - Total 0 Types 0/0/0/0/0/0/0/0/0 Lore% 47 Gallery% 60 Achievement% 44 Wizard Run 0 Options --------- Layout 0 ASCII 0 Keyboard 0 Movement Mouse Keybinds 1 Fullscreen 2 Font 18/SmallcapsGlow Map View 76x50 Zoom Use 0% Tactical HUD 1 Map Filters SATURATION(75) Filters LOW_CONTRAST(23,23,23) Steam 1 RUN: bcf145cc-ad17-4cd5-8010-d9c8f2648909